[Event "FIDE WAC U2000 2021"]
[Site "Rhodes"]
[Date "2021.10.24"]
[Round "8.1"]
[White "Peter Anand, A."]
[Black "Sultanbek, Zeinep"]
[Result "1/2-1/2"]
[ECO "D02"]
[WhiteElo "1787"]
[BlackElo "1883"]
[Annotator "NA"]
[PlyCount "144"]
[EventDate "2021.10.17"]
[EventType "swiss"]
[EventCountry "GRE"]
[SourceTitle "playchess.com"]
[Source "ChessBase"]
[SourceQuality "1"]
[TimeControl "5400+30"]

1. d4 {[%emt 0:00:05]} c5 {[%emt 0:00:39]} 2. c3 {[%emt 0:00:07]} d5 {[%emt 0:00:03]} 3. Nf3 {[%emt 0:00:54]} Nc6 {[%emt 0:00:05]} 4. dxc5 {[%emt 0:07:15]} e6 {[%emt 0:03:26]} 5. b4 {[%emt 0:00:34]} a5 {[%emt 0:00:34]} 6. Qb3 {[%emt 0:02:27]} Nf6 {[%emt 0:00:36]} 7. Bb2 {[%emt 0:01:27]} Ne4 {[%emt 0:00:52]} 8. Nbd2 {[%emt 0:01:38]} axb4 {[%emt 0:05:32]} 9. cxb4 {[%emt 0:01:36]} b6 {[%emt 0:00:03]} 10. Nxe4 {[%emt 0:09:11]} dxe4 {[%emt 0:00:07]} 11. Ne5 {[%emt 0:04:21]} Nxe5 {[%emt 0:01:10]} 12. Bxe5 {[%emt 0:00:10]} bxc5 {[%emt 0:00:00]} 13. bxc5 {[%emt 0:07:22]} Qa5+ {[%emt 0:00:11]} 14. Bc3 {[%emt 0:03:24]} Qxc5 {[%emt 0:00:11]} 15. e3 {[%emt 0:02:25]} Bd7 {[%emt 0:13:54]} 16. Be2 {[%emt 0:07:16]} Bd6 {[%emt 0:00:10]} 17. O-O {[%emt 0:01:15]} Ra3 {[%emt 0:02:23]} 18. Bd4 {[%emt 0:01:34] [#]} Bxh2+ $1 {[%emt 0:01:07]} 19. Kh1 {[%emt 0:13:21]} Qe7 {[%emt 0:00:43]} 20. Kxh2 {[%emt 0:05:02]} Rxb3 {[%emt 0:00:07]} 21. axb3 {[%emt 0:00:03]} O-O {[%emt 0:00:06]} 22. Rfc1 {[%emt 0:00:45]} h5 {[%emt 0:09:44]} 23. Bc5 {[%emt 0:05:01]} Qh4+ {[%emt 0:00:07]} 24. Kg1 {[%emt 0:00:03]} Rb8 {[%emt 0:00:36]} 25. b4 {[%emt 0:00:13]} Qg5 {[%emt 0:03:32]} 26. Ra7 {[%emt 0:03:04]} Bb5 {[%emt 0:08:07]} 27. Be7 {[%emt 0:07:46]} Qd5 {[%emt 0:21:27]} 28. Rc5 {[%emt 0:00:27]} Bxe2 {[%emt 0:00:13]} 29. Rxd5 {[%emt 0:00:07]} exd5 {[%emt 0:00:03]} 30. Bc5 {[%emt 0:00:14]} f6 {[%emt 0:00:06]} 31. Kh2 {[%emt 0:00:48]} Kh7 {[%emt 0:00:19]} 32. Kg3 {[%emt 0:00:28]} Kh6 {[%emt 0:00:35]} 33. Rd7 {[%emt 0:05:04]} Bc4 {[%emt 0:00:27]} 34. Ra7 {[%emt 0:01:00]} g5 {[%emt 0:02:53]} 35. Rf7 {[%emt 0:02:49]} Kg6 {[%emt 0:00:22]} 36. Rf8 {[%emt 0:00:53]} (36. Ra7 $11) 36... h4+ {[%emt 0:00:56]} 37. Kh2 {[%emt 0:00:26]} Rxf8 {[%emt 0:00:42]} 38. Bxf8 {[%emt 0:00:03]} f5 {[%emt 0:00:15]} 39. Bd6 {[%emt 0:01:19]} Kh5 {[%emt 0:00:25]} 40. Kh3 {[%emt 0:01:04]} Bb5 {[%emt 0:00:53]} 41. Be5 {[%emt 0:01:10]} Bd7 {[%emt 0:00:15]} 42. Kh2 {[%emt 0:00:21]} Kg4 {[%emt 0:00:05]} 43. Bd4 {[%emt 0:01:10]} f4 {[%emt 0:00:09]} 44. Be5 {[%emt 0:00:36]} f3 {[%emt 0:00:05]} 45. Bd6 $2 {[%emt 0:04:43] [#]} (45. Kg1 $17) 45... Bb5 $2 {[%emt 0:03:37]} (45... d4 $1 $19 {[%cal Rd4d3]} 46. Be5 d3) 46. Kg1 {[%emt 0:01:37]} Kh5 {[%emt 0:01:19]} 47. Be5 {[%emt 0:00:14]} Kg4 {[%emt 0:04:55]} 48. Bd6 $1 {[%emt 0:00:33]} h3 {[%emt 0:00:05]} (48... Bc6 $17 49. gxf3+ exf3) 49. gxh3+ {[%emt 0:00:40]} Kxh3 {[%emt 0:00:01]} 50. Be5 {[%emt 0:00:22]} g4 {[%emt 0:00:02]} 51. Bd4 {[%emt 0:00:33]} Bd7 {[%emt 0:05:21]} 52. Be5 {[%emt 0:00:20]} Kh4 {[%emt 0:00:14]} 53. Bf6+ {[%emt 0:00:10]} Kh5 {[%emt 0:00:04]} 54. Kh2 {[%emt 0:00:12]} Kg6 {[%emt 0:00:07]} 55. Bd4 {[%emt 0:00:04]} Kf7 {[%emt 0:00:06]} 56. Kg3 {[%emt 0:00:07]} Ke8 {[%emt 0:00:05]} 57. Bf6 {[%emt 0:00:50]} Kf7 {[%emt 0:00:06]} 58. Bd4 {[%emt 0:00:05]} Ke7 {[%emt 0:00:06]} 59. Bc5+ {[%emt 0:00:14]} Kd8 {[%emt 0:00:05]} 60. Bd4 {[%emt 0:00:05]} Kc7 {[%emt 0:00:04]} 61. b5 {[%emt 0:00:45]} Kd6 {[%emt 0:00:33]} 62. b6 {[%emt 0:00:08]} Kc6 {[%emt 0:00:04]} 63. Kh2 {[%emt 0:00:09]} Bc8 {[%emt 0:01:03]} 64. Kg3 {[%emt 0:00:02]} Kb5 {[%emt 0:00:26]} 65. b7 {[%emt 0:00:16]} Bxb7 {[%emt 0:00:03]} 66. Kxg4 {[%emt 0:00:05]} Kc4 {[%emt 0:00:02]} 67. Kg3 {[%emt 0:00:06]} Kd3 {[%emt 0:00:03]} 68. Bc5 {[%emt 0:00:13]} Ke2 {[%emt 0:00:06]} 69. Bd4 {[%emt 0:00:05]} Bc8 {[%emt 0:00:05]} 70. Bc5 {[%emt 0:00:07]} Bb7 {[%emt 0:00:02]} 71. Bd4 {[%emt 0:00:04]} Bc8 {[%emt 0:00:03]} 72. Bc5 $15 {[%emt 0:00:04]} Bb7 {[%emt 0:00:02]} 1/2-1/2

[Event "FIDE WAC U2000 2021"]
[Site "Rhodes"]
[Date "2021.10.24"]
[Round "8.2"]
[White "Degrande, Marigje"]
[Black "Ehab, Mohamed"]
[Result "1-0"]
[ECO "A26"]
[WhiteElo "1889"]
[BlackElo "1948"]
[Annotator "ChessBase"]
[PlyCount "79"]
[EventDate "2021.10.17"]
[EventType "swiss"]
[EventCountry "GRE"]
[SourceTitle "playchess.com"]
[Source "ChessBase"]
[SourceQuality "1"]
[TimeControl "5400+30"]

1. c4 {[%emt 0:00:02]} e5 {[%emt 0:03:57]} 2. Nc3 {[%emt 0:00:06]} Nc6 {[%emt 0:00:28]} 3. g3 {[%emt 0:00:06]} g6 {[%emt 0:00:29]} 4. Bg2 {[%emt 0:00:07]} Bg7 {[%emt 0:00:08]} 5. e4 {[%emt 0:00:04]} d6 {[%emt 0:01:08]} 6. d3 {[%emt 0:00:20]} f5 {[%emt 0:00:27]} 7. Nge2 {[%emt 0:00:56]} Nf6 {[%emt 0:01:32]} 8. O-O {[%emt 0:03:12]} O-O {[%emt 0:03:09]} 9. h3 {[%emt 0:04:33]} Be6 {[%emt 0:03:06]} 10. exf5 {[%emt 0:02:48]} gxf5 {[%emt 0:02:38]} 11. Bg5 {[%emt 0:01:18]} h6 {[%emt 0:11:22]} 12. Bh4 {[%emt 0:00:09]} Qd7 {[%emt 0:01:49]} 13. Kh2 {[%emt 0:01:09]} f4 {[%emt 0:07:28]} 14. f3 {[%emt 0:04:41]} fxg3+ {[%emt 0:09:24]} 15. Nxg3 {[%emt 0:01:22]} Nd4 {[%emt 0:02:08]} 16. Nce2 {[%emt 0:02:32]} Nf5 {[%emt 0:04:14]} 17. Nxf5 {[%emt 0:01:19]} Bxf5 {[%emt 0:00:01]} 18. Ng3 {[%emt 0:01:56]} Bg6 {[%emt 0:00:33]} 19. Qd2 {[%emt 0:13:23]} Nh5 {[%emt 0:02:29]} 20. Nxh5 {[%emt 0:00:43]} Bxh5 {[%emt 0:00:02]} 21. Bg3 {[%emt 0:00:41]} Rf6 {[%emt 0:12:14]} 22. f4 {[%emt 0:03:03]} Rg6 {[%emt 0:03:08]} 23. Bd5+ {[%emt 0:19:47]} Kh8 {[%emt 0:02:36]} 24. f5 {[%emt 0:01:33]} Rf6 {[%emt 0:00:11]} 25. Be6 {[%emt 0:01:19]} Rxe6 {[%emt 0:02:17]} 26. fxe6 {[%emt 0:00:14]} Qxe6 {[%emt 0:00:02]} 27. Rf2 {[%emt 0:01:55]} Be8 {[%emt 0:04:46]} 28. Qe3 {[%emt 0:01:47]} Bd7 {[%emt 0:00:15]} 29. Bh4 {[%emt 0:00:30]} e4 {[%emt 0:00:13]} 30. d4 {[%emt 0:02:48]} Kh7 {[%emt 0:04:20]} 31. Raf1 {[%emt 0:07:57]} c5 {[%emt 0:04:09]} 32. Rf7 {[%emt 0:02:40]} cxd4 {[%emt 0:01:33]} 33. Qg3 {[%emt 0:00:58]} Rg8 {[%emt 0:00:44]} 34. R1f6 {[%emt 0:01:45]} e3 {[%emt 0:13:26]} 35. Qg6+ {[%emt 0:03:16]} Kh8 {[%emt 0:00:01]} 36. Rxe6 {[%emt 0:05:12]} Be5+ {[%emt 0:00:31]} 37. Rxe5 {[%emt 0:00:19]} Rxg6 {[%emt 0:00:07]} 38. Ree7 {[%emt 0:00:18]} Bc6 {[%emt 0:01:02]} 39. Rf8+ {[%emt 0:00:09]} Rg8 {[%emt 0:00:09]} 40. Ra8 {[%emt 0:00:16]} 1-0

[Event "FIDE WAC U2000 2021"]
[Site "Rhodes"]
[Date "2021.10.24"]
[Round "8.3"]
[White "Hamad Bader"]
[Black "Mohamed Saeed Laily"]
[Result "1/2-1/2"]
[ECO "B11"]
[WhiteElo "1756"]
[BlackElo "1996"]
[Annotator "ChessBase"]
[PlyCount "68"]
[EventDate "2021.10.17"]
[EventType "swiss"]
[EventCountry "GRE"]
[SourceTitle "playchess.com"]
[Source "ChessBase"]
[SourceQuality "1"]
[TimeControl "5400+30"]

1. e4 {[%emt 0:00:32]} c6 {[%emt 0:00:06]} 2. Nf3 {[%emt 0:00:07]} d5 {[%emt 0:00:07]} 3. Nc3 {[%emt 0:00:19]} dxe4 {[%emt 0:00:16]} 4. Nxe4 {[%emt 0:00:07]} Nf6 {[%emt 0:00:03]} 5. Qe2 {[%emt 0:00:08]} Nxe4 {[%emt 0:00:05]} 6. Qxe4 {[%emt 0:00:05]} Nd7 {[%emt 0:00:09]} 7. Bc4 {[%emt 0:00:23]} Nf6 {[%emt 0:00:15]} 8. Ne5 {[%emt 0:00:07]} e6 {[%emt 0:00:07]} 9. Qe2 {[%emt 0:00:05]} b5 {[%emt 0:03:37]} 10. Bd3 {[%emt 0:08:38]} Bb7 {[%emt 0:17:19]} 11. b3 {[%emt 0:10:06]} a6 {[%emt 0:03:04]} 12. Bb2 {[%emt 0:01:45]} Bc5 {[%emt 0:04:32]} 13. O-O {[%emt 0:16:53]} Bd4 {[%emt 0:01:46]} 14. Bxd4 {[%emt 0:01:20]} Qxd4 {[%emt 0:00:02]} 15. a4 {[%emt 0:00:41]} O-O {[%emt 0:01:36]} 16. c3 {[%emt 0:05:05]} Qd6 {[%emt 0:15:44]} 17. c4 {[%emt 0:07:45]} b4 {[%emt 0:16:01]} 18. c5 {[%emt 0:11:38]} Qxc5 {[%emt 0:06:22]} 19. Rac1 {[%emt 0:00:05]} Qd5 {[%emt 0:01:02]} 20. Qe3 {[%emt 0:05:01]} c5 {[%emt 0:02:58]} 21. f3 {[%emt 0:00:31]} Rac8 {[%emt 0:01:10]} 22. Rc4 {[%emt 0:00:19]} Rc7 {[%emt 0:05:18]} 23. Rfc1 {[%emt 0:00:42]} Rfc8 {[%emt 0:00:15]} 24. a5 {[%emt 0:06:50]} Qd6 {[%emt 0:03:18]} 25. Rh4 {[%emt 0:00:39]} h6 {[%emt 0:05:51]} 26. Nc4 {[%emt 0:02:48]} Qe7 {[%emt 0:00:30]} 27. Nb6 {[%emt 0:00:15]} Rd8 {[%emt 0:03:22]} 28. Rhc4 {[%emt 0:01:55]} Qd6 {[%emt 0:02:27]} 29. Bf1 {[%emt 0:02:48]} Qxd2 {[%emt 0:01:52]} 30. Qxd2 {[%emt 0:00:06]} Rxd2 {[%emt 0:00:04]} 31. Rxc5 {[%emt 0:00:07]} Rxc5 {[%emt 0:00:59]} 32. Rxc5 {[%emt 0:00:23]} Ra2 {[%emt 0:01:41]} 33. Bc4 {[%emt 0:03:37]} g6 {[%emt 0:01:39]} 34. h4 {[%emt 0:04:14]} Kg7 {[%emt 0:00:33]} 1/2-1/2

[Event "FIDE WAC U2000 2021"]
[Site "Rhodes"]
[Date "2021.10.24"]
[Round "8.4"]
[White "Silva Hernandez, Jesus Arturo"]
[Black "Celik, Berkay"]
[Result "0-1"]
[ECO "A48"]
[WhiteElo "1975"]
[BlackElo "1846"]
[Annotator "ChessBase"]
[PlyCount "50"]
[EventDate "2021.10.17"]
[EventType "swiss"]
[EventCountry "GRE"]
[SourceTitle "playchess.com"]
[Source "ChessBase"]
[SourceQuality "1"]
[TimeControl "5400+30"]

1. d4 {[%emt 0:00:03]} Nf6 {[%emt 0:04:18]} 2. Bf4 {[%emt 0:00:13]} g6 {[%emt 0:00:53]} 3. e3 {[%emt 0:00:19]} Bg7 {[%emt 0:00:07]} 4. Nf3 {[%emt 0:00:39]} O-O {[%emt 0:00:05]} 5. Be2 {[%emt 0:00:08]} c5 {[%emt 0:00:04]} 6. c3 {[%emt 0:00:23]} d6 {[%emt 0:00:03]} 7. h3 {[%emt 0:00:10]} Qb6 {[%emt 0:00:04]} 8. Qb3 {[%emt 0:01:41]} Be6 {[%emt 0:00:16]} 9. Qa3 {[%emt 0:00:31]} Qc6 {[%emt 0:09:04]} 10. O-O {[%emt 0:00:52]} c4 {[%emt 0:10:55]} 11. Nbd2 {[%emt 0:00:39]} b5 {[%emt 0:04:47]} 12. Rfc1 {[%emt 0:05:00]} Nd5 {[%emt 0:03:58]} 13. Bh2 {[%emt 0:00:26]} a5 {[%emt 0:00:41]} 14. b3 {[%emt 0:29:38]} Nxc3 {[%emt 0:01:41]} 15. Bxc4 {[%emt 0:01:26]} Bxc4 {[%emt 0:00:58]} 16. Rxc3 {[%emt 0:14:45]} b4 {[%emt 0:01:20]} 17. Rxc4 {[%emt 0:00:12]} bxa3 {[%emt 0:00:05]} 18. Rxc6 {[%emt 0:00:10]} Nxc6 {[%emt 0:00:02]} 19. Nc4 {[%emt 0:01:08]} a4 {[%emt 0:00:01]} 20. Nb6 {[%emt 0:01:02]} axb3 {[%emt 0:01:47]} 21. Nxa8 {[%emt 0:05:55]} b2 {[%emt 0:00:06]} 22. Rd1 {[%emt 0:01:03]} Rxa8 {[%emt 0:00:49]} 23. Nd2 {[%emt 0:01:06]} Nb4 {[%emt 0:00:10]} 24. Nb1 {[%emt 0:04:34]} Nxa2 {[%emt 0:00:02]} 25. Rd3 {[%emt 0:00:02]} Nc3 {[%emt 0:00:02]} 0-1

[Event "FIDE WAC U2000 2021"]
[Site "Rhodes"]
[Date "2021.10.24"]
[Round "8.5"]
[White "Dogu, Hasim"]
[Black "Astrelin, Evgeny"]
[Result "0-1"]
[ECO "B20"]
[WhiteElo "1852"]
[BlackElo "1980"]
[Annotator "ChessBase"]
[PlyCount "195"]
[EventDate "2021.10.17"]
[EventType "swiss"]
[EventCountry "GRE"]
[SourceTitle "playchess.com"]
[Source "ChessBase"]
[SourceQuality "1"]
[TimeControl "5400+30"]

1. b3 {[%emt 0:00:15]} c5 {[%emt 0:00:20]} 2. e4 {[%emt 0:01:12]} d6 {[%emt 0:00:06]} 3. Bb2 {[%emt 0:00:19]} e5 {[%emt 0:00:09]} 4. Bc4 {[%emt 0:00:59]} Nf6 {[%emt 0:00:14]} 5. Nc3 {[%emt 0:00:31]} Be7 {[%emt 0:00:25]} 6. Nf3 {[%emt 0:00:33]} O-O {[%emt 0:00:17]} 7. h3 {[%emt 0:02:03]} Nc6 {[%emt 0:01:56]} 8. d3 {[%emt 0:00:58]} Nd4 {[%emt 0:01:14]} 9. Nxd4 {[%emt 0:00:13]} cxd4 {[%emt 0:02:18]} 10. Nd5 {[%emt 0:01:49]} Nxd5 {[%emt 0:15:02]} 11. Bxd5 {[%emt 0:00:39]} Qc7 {[%emt 0:00:40]} 12. O-O {[%emt 0:02:16]} Be6 {[%emt 0:00:13]} 13. Bc4 {[%emt 0:02:43]} Bxc4 {[%emt 0:01:57]} 14. bxc4 {[%emt 0:00:06]} f5 {[%emt 0:00:21]} 15. Qf3 {[%emt 0:04:11]} Qc6 {[%emt 0:03:41]} 16. Rfe1 {[%emt 0:04:54]} Rf6 {[%emt 0:10:20]} 17. Qe2 {[%emt 0:02:43]} Raf8 {[%emt 0:03:59]} 18. f3 {[%emt 0:01:32]} f4 {[%emt 0:01:44]} 19. a4 {[%emt 0:02:00]} Rg6 {[%emt 0:00:44]} 20. Qf2 {[%emt 0:05:40]} Qd7 {[%emt 0:00:26]} 21. Kf1 {[%emt 0:00:12]} Rg3 {[%emt 0:03:54]} 22. Ke2 {[%emt 0:06:18]} Bh4 {[%emt 0:00:56]} 23. Qf1 {[%emt 0:00:08]} Rf6 {[%emt 0:13:15]} 24. Kd2 {[%emt 0:00:19]} Rfg6 {[%emt 0:00:05]} 25. Re2 {[%emt 0:00:09]} Qd8 {[%emt 0:00:10]} 26. c3 {[%emt 0:03:26]} dxc3+ {[%emt 0:02:27]} 27. Bxc3 {[%emt 0:00:08]} Qg5 {[%emt 0:00:19]} 28. Rb1 {[%emt 0:01:39]} Rxg2 {[%emt 0:00:22]} 29. Qd1 {[%emt 0:01:34]} Rxe2+ {[%emt 0:01:59]} 30. Qxe2 {[%emt 0:00:05]} Qg3 {[%emt 0:02:04]} 31. Qf1 {[%emt 0:33:44]} Qg2+ {[%emt 0:01:13]} 32. Qxg2 {[%emt 0:00:02]} Rxg2+ {[%emt 0:00:07]} 33. Kd1 {[%emt 0:00:07]} Rg1+ {[%emt 0:00:12]} 34. Kc2 {[%emt 0:00:11]} Rxb1 {[%emt 0:00:07]} 35. Kxb1 {[%emt 0:00:25]} Bf2 {[%emt 0:00:02]} 36. Kc2 {[%emt 0:00:44]} Kf7 {[%emt 0:00:08]} 37. Kd1 {[%emt 0:00:20]} Bc5 {[%emt 0:00:32]} 38. Ke2 {[%emt 0:00:31]} b6 {[%emt 0:00:38]} 39. Be1 {[%emt 0:01:16]} Kf6 {[%emt 0:04:28]} 40. Kf1 {[%emt 0:00:47]} g5 {[%emt 0:10:45]} 41. Kg2 {[%emt 0:01:01]} h5 {[%emt 0:00:06]} 42. Kf1 {[%emt 0:01:09]} Kg6 {[%emt 0:01:28]} 43. Kg2 {[%emt 0:00:09]} a6 {[%emt 0:00:53]} 44. Bd2 {[%emt 0:02:05]} Kf6 {[%emt 0:00:15]} 45. Be1 {[%emt 0:00:32]} Ke6 {[%emt 0:00:08]} 46. Kf1 {[%emt 0:01:04]} Kd7 {[%emt 0:00:19]} 47. Ke2 {[%emt 0:00:14]} Kc6 {[%emt 0:01:00]} 48. Bc3 {[%emt 0:01:07]} b5 {[%emt 0:00:32]} 49. cxb5+ {[%emt 0:00:50]} axb5 {[%emt 0:00:05]} 50. axb5+ {[%emt 0:00:10]} Kxb5 {[%emt 0:00:04]} 51. Be1 {[%emt 0:00:50]} Ka4 {[%emt 0:01:57]} 52. Kd1 {[%emt 0:01:16]} Be3 {[%emt 0:04:15]} 53. Ke2 {[%emt 0:00:27]} Bb6 {[%emt 0:02:58]} 54. Kd1 {[%emt 0:00:37]} Kb3 {[%emt 0:00:12]} 55. Ke2 {[%emt 0:02:46]} Ka3 {[%emt 0:01:39]} 56. Kd1 {[%emt 0:00:19]} Ka4 {[%emt 0:00:12]} 57. Ke2 {[%emt 0:01:11]} Kb3 {[%emt 0:02:18]} 58. Kd1 {[%emt 0:01:22]} Bd8 {[%emt 0:06:43]} 59. Ke2 {[%emt 0:01:26]} Ka4 {[%emt 0:00:06]} 60. Bf2 {[%emt 0:00:30]} Kb5 {[%emt 0:00:06]} 61. Be1 {[%emt 0:00:51]} Ba5 {[%emt 0:00:41]} 62. Bf2 {[%emt 0:00:24]} Bb6 {[%emt 0:00:06]} 63. Be1 {[%emt 0:00:09]} Kc6 {[%emt 0:00:05]} 64. Bb4 {[%emt 0:00:23]} Bc5 {[%emt 0:00:22]} 65. Ba5 {[%emt 0:00:09]} Kd7 {[%emt 0:00:40]} 66. Kf1 {[%emt 0:00:40]} Ke7 {[%emt 0:01:51]} 67. Kg2 {[%emt 0:00:11]} Ba7 {[%emt 0:00:18]} 68. Bc7 {[%emt 0:00:34]} Bc5 {[%emt 0:00:21]} 69. Ba5 {[%emt 0:00:08]} Be3 {[%emt 0:00:24]} 70. Kf1 {[%emt 0:00:46]} Ba7 {[%emt 0:01:37]} 71. Ke2 {[%emt 0:00:46]} Bb8 {[%emt 0:00:12]} 72. Bb6 {[%emt 0:00:19]} Kd7 {[%emt 0:00:04]} 73. Kd1 {[%emt 0:01:28]} Bc7 {[%emt 0:00:05]} 74. Bf2 {[%emt 0:00:39]} Kc6 {[%emt 0:00:07]} 75. Ke2 {[%emt 0:00:17]} Bb6 {[%emt 0:00:05]} 76. Be1 {[%emt 0:00:07]} Kd7 {[%emt 0:00:06]} 77. Kf1 {[%emt 0:00:20]} Ke6 {[%emt 0:00:10]} 78. Bb4 {[%emt 0:00:12]} Bc7 {[%emt 0:01:16]} 79. Kg2 {[%emt 0:00:18]} Bd8 {[%emt 0:02:21]} 80. Kh2 {[%emt 0:00:40]} Bc7 {[%emt 0:02:39]} 81. Kg2 {[%emt 0:00:09]} Kf7 {[%emt 0:00:36]} 82. Be1 {[%emt 0:00:23]} Kf6 {[%emt 0:00:27]} 83. Bf2 {[%emt 0:00:13]} Ba5 {[%emt 0:00:22]} 84. Ba7 {[%emt 0:00:19]} Ke6 {[%emt 0:00:08]} 85. Kf1 {[%emt 0:00:23]} Bb4 {[%emt 0:00:28]} 86. Bf2 {[%emt 0:00:20]} Kf6 {[%emt 0:01:28]} 87. Kg2 {[%emt 0:00:05]} Ba5 {[%emt 0:00:06]} 88. Ba7 {[%emt 0:00:12]} Bc3 {[%emt 0:00:55]} 89. Bf2 {[%emt 0:00:09]} Ke6 {[%emt 0:00:09]} 90. Kf1 {[%emt 0:00:12]} Bb4 {[%emt 0:00:52]} 91. Bb6 {[%emt 0:01:20]} Kd7 {[%emt 0:00:17]} 92. Ke2 {[%emt 0:00:34]} Bc3 {[%emt 0:00:13]} 93. Bf2 {[%emt 0:00:32]} Kc6 {[%emt 0:00:16]} 94. Kf1 {[%emt 0:00:24]} Bb4 {[%emt 0:00:13]} 95. Ke2 {[%emt 0:00:16]} d5 {[%emt 0:00:29]} 96. Ba7 {[%emt 0:00:35]} d4 {[%emt 0:00:37]} 97. Bb8 {[%emt 0:03:15]} Bd6 {[%emt 0:00:02]} 98. Ba7 {[%emt 0:00:33]} 0-1